bitfinex-derivatives/quotes_SOLF0:USTF0_20240910
["timestamp","ask_amount","ask_price","bid_price","bid_amount"]
[1725933677089,3.3759,133.28,133.24,9.23]
[1725933677493,3.3761,133.27,133.23,12.607]
[1725933678597,22.53,133.29,133.23,12.607]
[1725933679404,22.53,133.29,133.24,3.3766]
[1725933679701,31.76,133.29,133.23,9.23]
[1725933679896,31.76,133.29,133.24,3.3768]
[1725933680093,22.53,133.29,133.24,3.3768]
[1725933680604,22.53,133.29,133.25,3.3765]
[1725933681105,22.53,133.29,133.26,3.3763]
[1725933681597,22.53,133.31,133.24,14.41]
[1725933682702,3.71762857,133.32,133.26,3.3763]
[1725933682908,25.2923,133.33,133.26,3.3763]
[1725933683092,3.3752,133.31,133.26,3.3763]
[1725933683297,22.53,133.3,133.26,3.3763]
[1725933684805,22.53,133.3,133.27,3.376]
[1725933685301,3.72663645,133.31,133.27,3.376]
[1725933685495,3.3749,133.32,133.27,3.376]
[1725933686102,3.68151846,133.31,133.27,3.376]
[1725933688094,3.3752,133.31,133.26,3.3762]
[1725933688299,22.53,133.3,133.26,3.3762]
[1725933689006,22.53,133.28,133.26,3.3762]
[1725933689608,22.53,133.28,133.27,3.376]
[1725933689810,22.53,133.28,133.22,2.6711]
[1725933690200,26.2350617,133.3,133.22,2.6711]
[1725933690600,29.6104617,133.3,133.22,2.6711]
[1725933691605,29.6104617,133.3,133.26,3.3761]
[1725933694108,26.2350617,133.3,133.21,19.53665296]
[1725933694310,1.4163,133.29,133.21,19.53665296]
[1725933694704,1.3837,133.28,133.21,19.53665296]
[1725933695214,22.53,133.27,133.24,3.3767]
[1725933696122,22.53,133.26,133.24,3.3767]
[1725933697414,23.9137,133.28,133.24,3.3767]
[1725933698707,22.53,133.27,133.25,3.3765]
[1725933700009,1.3837,133.28,133.25,3.3765]
[1725933700212,1.3837,133.28,133.26,3.3763]
[1725933701909,1.3837,133.28,133.25,3.3764]
[1725933703512,1.3837,133.28,133.24,3.3767]
[1725933704113,22.53,133.27,133.23,3.377]
[1725933704317,31.75,133.27,133.23,3.377]
[1725933705819,35.1261,133.27,133.22,3.3772]
[1725933706315,22.53,133.25,133.22,3.3772]
[1725933706820,22.53,133.25,133.23,3.377]
[1725933707421,22.53,133.25,133.22,3.3772]
[1725933707817,2.6852,133.28,133.21,9.22]
[1725933707818,22.53,133.24,133.21,9.22]
[1725933708018,22.53,133.24,133.23,3.3771]
[1725933708523,22.53,133.26,133.24,3.3766]
[1725933708821,22.53,133.27,133.24,3.3766]
[1725933709928,22.53,133.27,133.23,3.3769]
[1725933711429,22.53,133.27,133.22,9.22]
[1725933712137,25.9061,133.27,133.2,2.7791]
[1725933712339,22.53,133.26,133.2,11.9991]
[1725933712837,22.53,133.26,133.22,3.3772]
[1725933713133,25.9063,133.26,133.22,3.3772]
[1725933716636,22.53,133.25,133.2,2.7791]
[1725933717229,25.9067,133.25,133.21,3.3773]
[1725933717837,25.9067,133.25,133.22,3.3773]
[1725933718337,22.53,133.23,133.18,9.22]
[1725933719138,22.53,133.23,133.2,3.3776]
[1725933719340,22.53,133.23,133.18,9.22]
[1725933721443,22.53,133.21,133.17,9.22]
[1725933721744,31.75,133.21,133.17,3.3784]
[1725933722044,31.75,133.21,133.15,9.22]
[1725933722045,35.4379526,133.21,133.15,9.22]
[1725933722635,3.3779,133.2,133.15,9.22]
[1725933723431,38.8156526,133.21,133.17,3.3785]
[1725933723632,22.53,133.2,133.17,9.22]
[1725933724244,22.53,133.2,133.14,3.66522346]
[1725933724445,22.53,133.2,133.09,4.076]
[1725933724446,22.53,133.2,133.17,9.22]
[1725933724746,3.3776,133.21,133.17,9.22]
[1725933724946,22.53,133.21,133.18,3.3782]
[1725933725545,22.53,133.21,133.17,9.22]
[1725933725747,22.53,133.21,133.18,9.22]
[1725933726244,22.53,133.22,133.19,3.378]
[1725933726942,25.9074,133.22,133.18,9.22]
[1725933727146,22.53,133.22,133.18,3.3783]
[1725933727542,25.9074,133.22,133.18,3.3783]
[1725933728050,22.53,133.2,133.15,9.22]
[1725933728343,31.75,133.2,133.14,9.22]
[1725933728848,35.128,133.2,133.16,3.3787]
[1725933729458,12.5984,133.18,133.14,3.3792]
[1725933729654,22.53,133.17,133.14,3.3792]
[1725933730152,22.53,133.17,133.14,12.5992]
[1725933730660,22.53,133.17,133.15,3.3791]
[1725933731560,3.3781,133.19,133.15,3.3791]
[1725933731752,22.53,133.18,133.14,12.5992]
[1725933732553,25.9084,133.18,133.14,3.3792]
[1725933736063,22.53,133.18,133.15,3.3789]
[1725933736665,22.53,133.18,133.14,9.22]
[1725933736666,25.9085,133.18,133.14,3.3793]
[1725933739166,3.3786,133.17,133.14,3.3793]
[1725933741868,22.53,133.17,133.1,2.7835]
[1725933742265,22.53,133.17,133.12,9.22]
[1725933743086,3.3789,133.16,133.13,3.3795]
[1725933743584,22.53,133.17,133.13,12.5995]
[1725933743783,25.9087,133.17,133.13,12.5995]
[1725933746587,2.6232,133.22,133.15,3.3789]
[1725933746588,25.1532,133.22,133.15,3.3789]
[1725933746791,22.53,133.19,133.14,9.22]
[1725933747984,25.9082,133.19,133.15,3.379]
[1725933748792,25.9082,133.19,133.1,2.7835]
[1725933748793,31.75,133.16,133.1,2.7835]
[1725933748982,22.53,133.14,133.09,9.22]
[1725933749174,22.53,133.14,133.11,3.3799]
[1725933749581,22.53,133.14,133.05,1.3486]
[1725933749783,22.53,133.14,133.1,3.3802]
[1725933750678,22.53,133.14,133.11,3.38]
[1725933752385,25.9094,133.14,133.1,3.3803]
[1725933752582,22.53,133.14,133.1,3.3803]
[1725933754782,22.53,133.14,133.11,3.3801]
[1725933756687,3.3789,133.16,133.1,9.22]
[1725933756989,25.9089,133.16,133.1,9.22]
[1725933757188,3.3791,133.15,133.12,3.3797]
[1725933763290,3.3791,133.15,133.11,3.38]
[1725933764296,3.3791,133.15,133.12,3.3798]
[1725933767196,35.45858405,133.16,133.12,3.3798]
[1725933767197,22.53,133.16,133.12,9.22]
[1725933767401,23.8608,133.18,133.13,9.22]
[1725933767599,23.8608,133.18,133.15,3.3789]
[1725933769101,22.53,133.18,133.15,3.3789]
[1725933769603,22.53,133.18,133.16,3.3788]
[1725933770396,3.378,133.2,133.16,3.3788]
[1725933770597,22.53,133.19,133.16,3.3788]
[1725933770793,22.53,133.19,133.16,9.22]
[1725933771294,22.53,133.19,133.18,3.3783]
[1725933771493,22.53,133.21,133.16,9.22]
[1725933771899,22.53,133.21,133.18,9.22]
[1725933772498,22.53,133.21,133.19,3.3779]
[1725933773090,22.53,133.23,133.19,9.22]
[1725933773699,3.377,133.24,133.2,3.3777]
[1725933777202,25.9066,133.25,133.21,3.3774]
[1725933777797,25.9066,133.25,133.2,3.3777]
[1725933778698,22.53,133.23,133.2,3.3777]
[1725933778903,22.53,133.23,133.18,9.22]
[1725933779404,22.53,133.23,133.2,3.3778]
[1725933779906,25.9071,133.23,133.19,3.3779]
[1725933780800,22.53,133.24,133.21,3.3774]
[1725933781503,22.53,133.24,133.22,3.3773]
[1725933781710,22.53,133.24,133.2,9.22]
[1725933781903,22.53,133.26,133.2,9.22]
[1725933782208,22.53,133.26,133.23,3.3769]
[1725933782900,23.846,133.27,133.24,3.3766]
[1725933783807,27.2222,133.27,133.23,3.377]
[1725933784009,22.53,133.26,133.2,9.22]
[1725933784224,22.53,133.24,133.19,9.22]
[1725933784409,25.907,133.24,133.2,3.3777]
[1725933784709,22.53,133.24,133.2,3.3777]
[1725933785012,22.53,133.24,133.19,3.378]
[1725933785013,3.3772,133.23,133.19,3.378]
[1725933787204,3.3769,133.24,133.19,9.22]
[1725933787403,22.53,133.24,133.22,9.22]
[1725933788399,2.6041,133.26,133.22,9.22]
[1725933788906,22.53,133.25,133.23,3.3769]
[1725933789910,23.846,133.27,133.23,3.3769]
[1725933790103,33.066,133.27,133.22,9.22]
[1725933790308,22.53,133.24,133.19,9.22]
[1725933791409,22.53,133.26,133.21,9.22]
[1725933792007,25.9065,133.26,133.22,3.3771]
[1725933792715,22.53,133.26,133.21,12.5975]
[1725933792913,31.75,133.24,133.16,4.0083]
[1725933793111,31.75,133.24,133.17,9.22]
[1725933793614,3.3771,133.23,133.2,3.3778]
[1725933793912,31.75,133.24,133.2,3.3778]
[1725933794102,22.53,133.24,133.2,3.3778]
[1725933794309,22.53,133.24,133.2,9.22]
[1725933794508,22.53,133.24,133.21,9.22]
[1725933795214,27.2211,133.26,133.22,3.3771]
[1725933795417,25.9064,133.26,133.21,9.22]
[1725933795711,25.9064,133.26,133.22,9.22]
[1725933795712,22.53,133.26,133.22,9.22]
[1725933796310,27.2222,133.27,133.23,3.3769]
[1725933796515,27.2222,133.27,133.22,9.22]
[1725933796714,23.846,133.27,133.22,9.22]
[1725933797310,27.2222,133.27,133.23,3.377]
[1725933797515,23.846,133.27,133.23,3.377]
[1725933797910,25.9065,133.26,133.22,3.3771]
[1725933798107,9.22,133.25,133.2,9.22]
[1725933798313,22.53,133.24,133.2,9.22]
[1725933798909,22.53,133.24,133.19,9.22]
[1725933799221,1.3348,133.26,133.19,9.22]
[1725933799416,22.53,133.23,133.2,3.3778]
[1725933800316,25.907,133.24,133.21,3.3776]
[1725933800824,25.907,133.24,133.2,9.22]
[1725933801122,25.907,133.24,133.2,12.5977]
[1725933802221,25.907,133.24,133.21,3.3776]
[1725933802719,3.377,133.24,133.21,3.3776]
[1725933804026,3.3767,133.25,133.21,3.3776]
[1725933804522,27.2411,133.26,133.22,3.3773]
[1725933805629,3.3763,133.26,133.23,3.3771]
[1725933806020,27.2221,133.27,133.23,9.22]
[1725933806218,27.2221,133.27,133.16,4.0083]
[1725933806219,22.53,133.27,133.24,9.22]
[1725933806619,22.53,133.28,133.24,9.22]
[1725933808226,22.53,133.28,133.25,3.3764]
[1725933809623,3.3759,133.28,133.24,9.22]
[1725933810125,3.3759,133.28,133.23,9.22]
[1725933810126,25.9061,133.27,133.23,9.22]
[1725933810521,25.9061,133.27,133.23,12.5969]
[1725933811729,3.3763,133.26,133.22,3.3772]
[1725933812024,22.53,133.26,133.2,9.22]
[1725933812230,3.3767,133.25,133.2,9.22]
[1725933812927,3.3767,133.25,133.22,3.3772]
[1725933814435,3.3767,133.25,133.21,3.3774]
[1725933815123,3.3769,133.24,133.21,3.3774]
[1725933815323,22.53,133.24,133.2,12.5978]
[1725933816622,3.3772,133.23,133.2,12.5978]
[1725933816827,3.3772,133.23,133.2,9.22]
[1725933817035,35.44538631,133.23,133.15,3.70153843]
[1725933817230,23.828,133.23,133.16,9.22]
[1725933817428,36.83253882,133.23,133.17,9.22]
[1725933817828,3.3777,133.21,133.17,12.5984]
[1725933820233,22.53,133.21,133.16,9.22]
[1725933820436,31.75,133.21,133.16,9.22]
[1725933820639,3.3785,133.18,133.16,9.22]
[1725933822837,3.3785,133.18,133.14,12.5992]
[1725933823631,33.0389,133.21,133.14,12.5992]
[1725933823836,3.3786,133.17,133.14,12.5992]
[1725933824244,3.3784,133.18,133.16,9.22]
[1725933825642,3.3782,133.19,133.16,12.5988]
[1725933825842,1.2889,133.21,133.16,12.5988]
[1725933826847,3.3781,133.19,133.16,9.22]
[1725933828643,3.3779,133.2,133.17,9.22]
[1725933828944,1.2889,133.21,133.17,9.22]
[1725933829745,22.53,133.2,133.17,12.5984]
[1725933830144,22.53,133.2,133.18,3.3782]
[1725933830438,22.53,133.2,133.17,9.22]
[1725933830645,27.2051,133.23,133.19,9.22]
[1725933832142,27.2051,133.23,133.2,3.3777]
[1725933832532,1.298,133.23,133.19,9.22]
[1725933832732,22.53,133.22,133.17,9.22]
[1725933833445,3.378,133.2,133.17,9.22]
[1725933834848,3.378,133.2,133.17,12.5985]
[1725933837044,3.378,133.2,133.17,9.22]
[1725933837648,3.3781,133.19,133.17,9.22]
[1725933841947,22.53,133.22,133.17,12.5986]
[1725933842147,23.828,133.23,133.17,9.22]
[1725933842446,23.828,133.23,133.15,3.8406768]
[1725933842447,23.828,133.23,133.19,9.22]
[1725933843246,3.3774,133.22,133.19,12.5981]
[1725933843447,1.3213,133.25,133.2,9.22]
[1725933843850,3.3773,133.22,133.2,9.22]
[1725933844454,3.3772,133.23,133.2,9.22]
[1725933844654,22.53,133.24,133.2,9.22]
[1725933844854,23.8513,133.25,133.2,9.22]
[1725933845152,3.377,133.24,133.2,9.22]
[1725933845345,3.377,133.24,133.2,12.5977]
[1725933846052,3.3771,133.23,133.2,12.5977]
[1725933846349,3.3771,133.23,133.2,9.22]
[1725933848457,1.3213,133.25,133.21,9.22]
[1725933849060,22.53,133.24,133.21,12.5974]
[1725933849254,22.53,133.24,133.2,9.22]
[1725933849452,22.53,133.24,133.17,5.0821879]
[1725933849656,3.3773,133.23,133.19,9.22]
[1725933850055,22.53,133.24,133.19,9.22]
[1725933850353,3.3773,133.22,133.19,9.22]
[1725933850557,22.53,133.24,133.19,9.22]
[1725933850951,3.3772,133.23,133.19,9.22]
[1725933851559,3.3772,133.23,133.19,12.5981]
[1725933852162,12.96812376,133.23,133.18,9.22]
[1725933852350,22.53,133.22,133.17,9.22]
[1725933852862,22.53,133.22,133.18,9.22]
[1725933853259,23.9031,133.26,133.21,9.22]
[1725933853459,57.83671907,133.26,133.21,9.22]
[1725933853654,23.9031,133.26,133.21,9.22]
[1725933853963,3.3769,133.24,133.21,9.22]
[1725933855056,3.3772,133.23,133.2,9.22]
[1725933855755,31.75,133.24,133.18,9.22]
[1725933856068,3.3774,133.22,133.18,12.5982]
[1725933857559,3.3776,133.21,133.18,12.5982]
[1725933861162,3.3779,133.2,133.18,9.22]
[1725933862475,3.3776,133.21,133.18,12.5982]
[1725933862959,3.3779,133.2,133.18,9.22]
[1725933863159,3.3779,133.2,133.17,12.5985]
[1725933864664,25.9077,133.21,133.18,3.3783]
[1725933866781,3.77064854,133.22,133.18,9.22]
[1725933866782,22.53,133.2,133.18,9.22]
[1725933867785,25.9074,133.22,133.18,9.22]
[1725933868186,25.9074,133.22,133.19,3.378]
[1725933869588,3.3776,133.21,133.18,12.5982]
[1725933869785,22.53,133.22,133.17,9.22]
[1725933870184,3.378,133.2,133.17,12.5984]
[1725933871691,3.3781,133.19,133.16,6.0983]
[1725933873789,3.3781,133.19,133.17,9.22]
[1725933873989,22.53,133.22,133.17,9.22]
[1725933874187,22.53,133.22,133.18,9.22]
[1725933874992,22.53,133.21,133.18,9.22]
[1725933875485,22.53,133.21,133.2,9.22]
[1725933877095,3.3774,133.22,133.2,9.22]
[1725933880493,3.3772,133.23,133.2,12.5978]
[1725933881001,3.3773,133.22,133.2,9.22]
[1725933882096,3.3773,133.22,133.19,3.378]
[1725933884608,31.75,133.24,133.18,12.5982]
[1725933885103,3.3778,133.21,133.17,12.5985]
[1725933886799,3.3778,133.21,133.18,3.3783]
[1725933889603,22.53,133.21,133.2,9.22]
[1725933889903,11.9784,133.26,133.2,9.22]
[1725933890109,22.53,133.25,133.2,9.22]
[1725933890311,59.93363941,133.25,133.2,9.22]
[1725933890498,22.53,133.25,133.2,9.22]
[1725933890703,11.9784,133.26,133.2,9.22]
[1725933890704,2.7584,133.26,133.2,9.22]
[1725933890908,3.3771,133.23,133.2,9.22]
[1725933892206,3.3771,133.23,133.2,12.5978]
[1725933893913,3.3771,133.23,133.2,9.22]
[1725933895608,3.3774,133.22,133.2,9.22]
[1725933896511,3.3774,133.22,133.19,3.378]
[1725933905319,3.3776,133.21,133.18,3.3782]
[1725933906119,3.3774,133.22,133.19,3.3781]
[1725933906423,35.5003759,133.23,133.16,13.2232]
[1725933907124,25.9073,133.22,133.19,3.3781]
[1725933907340,22.53,133.22,133.19,9.22]
[1725933907917,22.53,133.22,133.2,3.3778]
[1725933908119,25.9072,133.23,133.2,3.3778]
[1725933909227,3.3772,133.23,133.2,3.3778]
[1725933910123,9.22,133.23,133.16,4.0032]
[1725933910324,31.75,133.22,133.15,13.04687975]
[1725933910517,31.75,133.22,133.1,4.0444]
[1725933910724,3.3785,133.18,133.14,9.22]
[1725933911027,3.3785,133.18,133.15,3.80519168]
[1725933911423,3.3786,133.17,133.12,9.22]
[1725933911628,31.75,133.18,133.12,9.22]
[1725933911834,31.75,133.18,133.12,12.5998]
[1725933912430,3.379,133.16,133.12,12.5998]
[1725933912621,22.53,133.18,133.12,9.22]
[1725933912828,22.53,133.17,133.14,9.22]
[1725933913124,22.53,133.19,133.14,9.22]
[1725933913629,22.53,133.19,133.15,3.3791]
[1725933913630,25.9083,133.19,133.15,3.3791]
[1725933914022,22.53,133.19,133.15,9.22]
[1725933915233,22.53,133.19,133.16,3.3788]
[1725933916025,22.53,133.19,133.15,9.22]
[1725933916227,23.8757,133.21,133.1,4.0444]
[1725933916530,23.8757,133.21,133.17,9.22]
[1725933916930,23.8757,133.21,133.16,3.3786]
[1725933917131,23.8757,133.21,133.15,9.22]
[1725933917524,3.3783,133.19,133.15,12.5989]
[1725933918832,3.3783,133.19,133.16,3.3788]
[1725933919433,3.3779,133.2,133.16,3.3788]
[1725933922436,22.53,133.27,133.18,9.22]
[1725933922637,22.53,133.24,133.19,9.22]
[1725933923138,22.53,133.24,133.21,3.3776]
[1725933923542,25.9068,133.24,133.2,12.5977]
[1725933923837,22.53,133.23,133.2,12.5977]
[1725933924239,25.9072,133.23,133.2,9.22]
[1725933924738,25.9067,133.25,133.21,3.3776]
[1725933925432,22.53,133.25,133.21,3.3776]
[1725933925639,3.3768,133.24,133.2,12.5977]
[1725933926838,3.3768,133.24,133.21,3.3775]
[1725933927238,3.3767,133.25,133.21,3.3775]
[1725933927439,25.9067,133.25,133.21,3.3775]
[1725933928338,22.53,133.25,133.23,9.22]
[1725933928543,3.3765,133.26,133.23,9.22]
[1725933931942,3.3765,133.26,133.22,3.3773]
[1725933932243,3.3768,133.24,133.16,4.0501]
[1725933932445,3.3768,133.24,133.2,9.22]
[1725933932742,25.9066,133.25,133.21,12.5974]
[1725933933131,22.53,133.25,133.22,9.22]
[1725933933336,22.53,133.26,133.22,9.22]
[1725933933541,22.53,133.26,133.23,3.3769]
[1725933934134,25.9063,133.26,133.23,3.3769]
[1725933934339,22.53,133.26,133.23,3.3769]
[1725933934545,25.1758,133.27,133.23,3.3769]
[1725933935247,3.3763,133.26,133.23,3.3769]
[1725933935545,3.3763,133.26,133.22,12.5972]
[1725933940352,34.3958,133.27,133.21,12.5975]
[1725933940553,25.1758,133.27,133.16,4.0501]
[1725933940750,3.3775,133.22,133.18,9.22]
[1725933940943,31.75,133.25,133.18,9.22]
[1725933941143,22.53,133.25,133.2,9.22]
[1725933941743,56.64684577,133.25,133.2,9.22]
[1725933941948,22.53,133.25,133.2,9.22]
[1725933942149,3.3769,133.24,133.21,3.3776]
[1725933943250,51.2105201,133.25,133.19,12.5979]
[1725933943451,31.75,133.25,133.19,12.5979]
[1725933943651,3.3775,133.22,133.19,12.5979]
[1725933943856,3.3775,133.22,133.18,12.5983]
[1725933944050,26.25859976,133.23,133.18,12.5983]
[1725933944251,3.3774,133.22,133.18,12.5983]
[1725933945156,3.3776,133.21,133.18,3.3783]
[1725933945751,3.3774,133.22,133.18,3.3783]
[1725933946558,3.3776,133.21,133.18,3.3783]
[1725933946951,3.3776,133.21,133.17,9.22]
[1725933947957,3.3776,133.21,133.17,12.5984]
[1725933954072,3.3779,133.2,133.17,9.22]
[1725933954264,22.53,133.21,133.16,12.5987]
[1725933955071,3.3781,133.19,133.16,12.5987]
[1725933955468,22.53,133.21,133.16,9.22]
[1725933955673,25.9075,133.22,133.17,9.22]
[1725933956073,22.53,133.22,133.18,3.3782]
[1725933957266,3.3776,133.21,133.17,12.5985]
[1725933957670,3.3778,133.2,133.17,12.5985]
[1725933960276,3.3778,133.2,133.16,3.3788]
[1725933960478,3.3778,133.2,133.16,9.22]
[1725933961187,3.3778,133.2,133.17,12.5985]
[1725933961787,25.3221,133.23,133.17,9.22]
[1725933961997,22.53,133.23,133.2,9.22]
[1725933962187,22.53,133.23,133.21,12.5975]
[1725933962992,22.53,133.26,133.21,12.5975]
[1725933963187,22.53,133.26,133.22,3.3772]
[1725933963597,25.9064,133.26,133.22,3.3772]
[1725933963895,23.8717,133.27,133.17,7.9883599]
[1725933964078,22.53,133.27,133.23,9.22]
[1725933964395,22.53,133.29,133.25,9.22]
[1725933964686,22.53,133.29,133.27,9.22]
[1725933964883,22.53,133.32,133.27,9.22]
[1725933965084,22.53,133.3,133.24,9.22]
[1725933965389,3.3759,133.28,133.23,9.22]
[1725933965988,3.3759,133.28,133.23,12.5969]
[1725933966185,31.75,133.3,133.23,12.5969]
[1725933966508,22.53,133.27,133.22,9.22]
[1725933966703,3.3764,133.26,133.22,9.22]
[1725933966888,3.3764,133.26,133.2,9.22]
[1725933967387,22.53,133.25,133.17,7.9883599]
[1725933967588,22.53,133.25,133.19,9.22]
[1725933967790,26.21439535,133.25,133.19,12.598]
[1725933967992,9.22,133.24,133.19,9.22]
[1725933968288,26.21439535,133.25,133.18,3.3783]
[1725933968289,3.3776,133.22,133.18,3.3783]
[1725933969990,25.9076,133.22,133.18,3.3783]
[1725933970294,22.53,133.2,133.16,12.89697213]
[1725933970492,22.53,133.2,133.14,9.22]
[1725933970694,31.75,133.2,133.15,3.3791]
[1725933970899,3.3782,133.19,133.15,3.3791]
[1725933972391,25.9079,133.2,133.16,12.5988]
[1725933972584,22.53,133.2,133.16,9.22]
[1725933973293,22.53,133.22,133.17,9.22]
[1725933973500,22.53,133.21,133.17,9.22]
[1725933973995,3.3772,133.23,133.19,3.3781]
[1725933974197,25.9072,133.23,133.19,3.3781]
[1725933976891,3.3772,133.23,133.2,3.3778]
[1725933977698,3.3772,133.23,133.19,12.598]
[1725933978293,27.2481,133.24,133.2,3.3777]
[1725933978496,23.8712,133.24,133.19,9.22]
[1725933978899,3.3771,133.23,133.2,3.3778]
[1725933980398,3.3773,133.22,133.19,9.22]
[1725933980902,22.53,133.23,133.19,9.22]
[1725933981602,23.8712,133.24,133.19,9.22]
[1725933983203,3.3772,133.23,133.19,12.5979]
[1725933983503,23.8712,133.24,133.19,12.5979]
[1725933983805,22.53,133.23,133.19,3.3779]
[1725933984005,3.3775,133.22,133.18,3.3783]
[1725933984198,22.53,133.23,133.13,3.7854828]
[1725933984402,25.9073,133.23,133.18,3.3781]
[1725933984599,1.4032,133.28,133.21,9.22]
[1725933984600,22.53,133.26,133.21,9.22]
[1725933984904,3.3763,133.26,133.21,12.5975]
[1725933985402,3.3766,133.25,133.21,3.3775]
[1725933985701,31.75,133.27,133.22,3.3773]
[1725933986504,35.1261,133.27,133.23,3.377]
[1725933987301,35.1261,133.27,133.22,3.3773]
[1725933987507,3.3763,133.26,133.22,3.3773]
[1725933989007,3.3763,133.26,133.21,3.3775]
[1725933989404,35.1261,133.27,133.21,9.22]
[1725933989604,25.9061,133.27,133.23,3.377]
[1725933990607,22.53,133.27,133.24,3.3767]
[1725933991410,22.53,133.27,133.23,12.597]
[1725933991909,25.9061,133.27,133.23,12.597]
[1725933993413,3.3763,133.26,133.23,12.597]
[1725933995511,3.3766,133.25,133.22,3.3772]
[1725933995715,22.53,133.26,133.22,3.3772]
[1725933996513,22.53,133.26,133.21,12.5975]
[1725933996709,22.53,133.26,133.2,3.78107134]
[1725933996915,22.53,133.25,133.2,9.22]
[1725933997120,22.53,133.25,133.19,11.9267]
[1725933997318,22.53,133.25,133.19,15.60058353]
[1725933997513,22.53,133.25,133.2,9.22]
[1725933997815,22.53,133.25,133.2,12.5977]
[1725933998017,22.53,133.25,133.19,9.22]
[1725933998211,22.53,133.23,133.19,9.22]
[1725933999316,3.3775,133.22,133.19,9.22]
[1725933999519,22.53,133.22,133.17,3.3785]
[1725933999821,3.3777,133.21,133.17,12.5985]
[1725934000518,25.9078,133.2,133.16,3.3788]
[1725934004321,3.3781,133.19,133.16,3.3788]
[1725934004523,3.3781,133.19,133.15,12.5989]
[1725934005216,3.3781,133.19,133.16,3.3788]
[1725934005421,3.3781,133.19,133.16,12.5988]
[1725934005719,22.53,133.2,133.15,9.22]
[1725934005928,22.53,133.19,133.14,3.70465466]
[1725934006222,3.3788,133.17,133.13,12.5995]
[1725934006613,3.3788,133.17,133.14,3.83553354]
[1725934006812,3.3788,133.17,133.13,12.5995]
[1725934007212,22.53,133.16,133.04,3.82763071]
[1725934007414,22.53,133.14,133.09,9.22]
[1725934007618,22.53,133.14,133.1,3.3803]
[1725934009219,25.9096,133.14,133.1,3.3803]
[1725934012323,22.53,133.14,133.08,3.80774254]
[1725934012526,22.53,133.14,133.1,9.22]
[1725934012824,25.2892,133.15,133.1,9.22]
[1725934013020,28.6684,133.15,133.11,3.3801]
[1725934015221,3.3794,133.14,133.11,3.3801]
[1725934018625,22.53,133.15,133.12,9.22]
[1725934019328,25.9092,133.15,133.12,12.5997]
[1725934019633,3.3792,133.15,133.12,12.5997]
[1725934019927,9.22,133.19,133.13,12.5995]
[1725934020226,22.53,133.18,133.13,9.22]
[1725934020533,22.53,133.18,133.15,3.379]
[1725934021031,22.53,133.18,133.14,3.3792]
[1725934021636,25.9083,133.18,133.14,3.3792]